fUSD/lending_fUSD_20260329
["ID","MTS","AMOUNT","RATE_DAILY","PERIOD"]
[419018416,1774759843600,-168.0,0.00014909,2]
[419018417,1774759843610,-9820.89885415,0.0001491,2]
[419018418,1774759843621,-33382.30864607,0.00014955,2]
[419018419,1774759843631,-168.0,0.00015031,2]
[419018420,1774759843641,-831.30897363,0.00015068,2]
[419018421,1774759843651,-683.37,0.00015068,2]
[419018422,1774759843661,-166.66,0.0001512,2]
[419018423,1774759843671,-9692.75124446,0.00015129,2]
[419018424,1774759843680,-9820.89885415,0.00015133,2]
[419018425,1774759843690,-33382.30864607,0.00015166,2]
[419018426,1774759843700,-1008.27174746,0.00015168,2]
[419018427,1774759843710,-898.88065305,0.00015168,2]
[419018428,1774759843719,-1042.69333386,0.00015168,2]
[419018429,1774759843729,-1500.0,0.00015168,2]
[419018430,1774759843739,-910.63975449,0.00015168,2]
[419018431,1774759843748,-684.37970889,0.00015168,2]
[419018432,1774759843759,-1500.0,0.00015168,2]
[419018433,1774759843769,-1500.0,0.00015168,2]
[419018434,1774759843779,-1577.83433324,0.00015168,2]
[419018435,1774759843789,-501.43625985,0.00015168,2]
[419018436,1774759843799,-1500.0,0.00015168,2]
[419018437,1774759843808,-1500.0,0.00015168,2]
[419018438,1774759843819,-1500.0,0.00015168,2]
[419018439,1774759843828,-580.42962611,0.00015168,2]
[419018440,1774759843838,-1002.74977469,0.00015168,2]
[419018441,1774759843847,-1500.0,0.00015168,2]
[419018442,1774759843859,-231.725394,0.00015199,7]
[419018443,1774759843868,-4107.0,0.00015199,2]
[419018444,1774759843878,-168.0,0.00015206,2]
[419018445,1774759843889,-417.16662779,0.00015233,2]
[419018446,1774759843898,-168935.3216784,0.00015243,2]
[419018447,1774759843909,-155.0398109,0.00015243,2]
[419018448,1774759843918,-13535.1175199,0.00015243,2]
[419018449,1774759843928,-151.0,0.00015243,2]
[419018450,1774759843938,-1085.7827285,0.00015243,2]
[419018451,1774759843948,-348.8395745,0.00015243,2]
[419018452,1774759843958,-2523.7516028,0.00015243,2]
[419018453,1774759843968,-151.0,0.00015243,2]
[419018454,1774759843978,-151.0,0.00015243,2]
[419018455,1774759843988,-151.0,0.00015243,2]
[419018456,1774759843998,-151.0,0.00015243,2]
[419018457,1774759844008,-151.0,0.00015243,2]
[419018458,1774759844018,-15626.2683677,0.00015243,2]
[419018459,1774759844027,-151.0,0.00015243,2]
[419018460,1774759844037,-151.0,0.00015243,2]
[419018461,1774759844048,-360.025682,0.00015243,2]
[419018462,1774759844058,-360.025682,0.00015243,2]
[419018463,1774759844085,-360.025682,0.00015243,2]
[419018464,1774759844096,-360.025682,0.00015243,2]
[419018465,1774759844106,-77351.1037166,0.00015243,2]
[419018466,1774759844116,-247.182364,0.00015243,2]
[419018467,1774759844279,-247.182364,0.00015243,2]
[419018468,1774759844291,-247.182364,0.00015243,2]
[419018469,1774759844301,-247.182364,0.00015243,2]
[419018470,1774759844310,-151.0,0.00015243,2]
[419018471,1774759844320,-161.265918,0.00015266,7]
[419018472,1774759844330,-166.38309596,0.00015273,2]
[419018473,1774759844340,-350.0,0.0001531,2]
[419018474,1774759844349,-9820.89885415,0.00015355,2]
[419018475,1774759844359,-15875.22869035,0.0001536,2]
[419018476,1774759844370,-284.20491109,0.00015362,2]
[419018477,1774759844380,-33382.30864607,0.00015377,2]
[419018478,1774759844391,-150.0,0.00015409,2]
[419018479,1774759844400,-150.0,0.00015409,2]
[419018480,1774759844410,-150.26946783,0.00015409,2]
[419018481,1774759844420,-150.0,0.00015409,2]
[419018482,1774759844430,-150.0,0.00015409,2]
[419018483,1774759844440,-176.16785264,0.00015409,2]
[419018484,1774759844450,-150.0,0.00015409,2]
[419018485,1774759844460,-150.0,0.00015409,2]
[419018486,1774759844471,-150.0,0.00015409,2]
[419018487,1774759844480,-256.111678,0.00015456,2]
[419018488,1774759844490,-151.0,0.00015456,2]
[419018489,1774759844500,-250.0,0.00015507,3]
[419018490,1774759844509,-65766.2028785,0.00015509,2]
[419018491,1774759844519,-1504.0,0.00015509,2]
[419018492,1774759844529,-522.498373,0.00015509,2]
[419018493,1774759844539,-522.498373,0.00015509,2]
[419018494,1774759844549,-522.498373,0.00015509,2]
[419018495,1774759844559,-522.498373,0.00015509,2]
[419018496,1774759844569,-9692.75124446,0.00015515,2]
[419018497,1774759844579,-165.6,0.00015516,2]
[419018498,1774759844588,-422.88395274,0.00015548,2]
[419018499,1774759844598,-166.66,0.00015561,2]
[419018500,1774759844607,-417.16662779,0.00015566,2]
[419018501,1774759844616,-9820.89885415,0.00015578,2]
[419018502,1774759844626,-253.417871,0.00015582,7]
[419018503,1774759844641,-202.565315,0.00015582,7]
[419018504,1774759844651,-161.265917,0.00015582,7]
[419018505,1774759844660,-406.081874,0.00015582,7]
[419018506,1774759844671,-161.265918,0.00015582,7]
[419018507,1774759844681,-33382.30864607,0.00015589,2]
[419018508,1774759844691,-200.0,0.000157,5]
[419018509,1774759844701,-1716.73514063,0.00015716,2]
[419018510,1774759844710,-466.69355566,0.00015716,2]
[419018511,1774759844721,-1500.0,0.00015716,2]
[419018512,1774759844731,-1083.85118063,0.00015716,2]
[419018513,1774759844741,-507.9229115,0.00015716,2]
[419018514,1774759844751,-2000.0,0.00015716,2]
[419018515,1774759844761,-2000.0,0.00015716,2]
[419018516,1774759844772,-178.676498,0.00015753,2]
[419018517,1774759844782,-683.37,0.00015753,2]
[419018518,1774759844793,-501.0,0.00015781,2]
[419018519,1774759844802,-627.0,0.00015781,2]
[419018520,1774759844813,-635.43,0.00015799,2]
[419018521,1774759844823,-500.0,0.00015799,2]
[419018522,1774759844833,-500.0,0.00015799,2]
[419018523,1774759844842,-500.0,0.00015799,2]
[419018524,1774759844852,-500.0,0.00015799,2]
[419018525,1774759844862,-500.0,0.00015799,2]
[419018526,1774759844873,-563.09074423,0.00015799,2]
[419018527,1774759844883,-505.93653105,0.00015799,2]
[419018528,1774759844894,-200.0,0.000158,5]
[419018529,1774759844904,-9820.89885415,0.000158,2]
[419018530,1774759844914,-33382.30864607,0.000158,2]
[419018531,1774759844924,-587.0,0.00015819,2]
[419018532,1774759844934,-301.0,0.00015836,2]
[419018533,1774759844944,-2351.0,0.00015868,2]
[419018534,1774759844954,-2000.0,0.0001589,2]
[419018535,1774759844965,-587.0,0.00015893,2]
[419018536,1774759844976,-4000.0,0.00015895,2]
[419018537,1774759844987,-151.0,0.00015897,2]
[419018538,1774759844999,-421.06308427,0.00015899,2]
[419018539,1774759845010,-322650.02906362,0.000159,2]
[419018540,1774759845021,-2580.94811729,0.000159,2]
[419018541,1774759845032,-673.41547514,0.000159,2]
[419018542,1774759845043,-179.18271455,0.000159,2]
[419018543,1774759845053,-200.0,0.000159,5]
[419018544,1774759845064,-192.98,0.000159,2]
[419018545,1774759845074,-189.18,0.000159,2]
[419018546,1774759845085,-1000.0,0.000159,2]
[419018547,1774759845096,-1000.0,0.000159,2]
[419018548,1774759845106,-1000.0,0.000159,2]
[419018549,1774759845118,-1000.0,0.000159,2]
[419018550,1774759845128,-1000.0,0.000159,2]
[419018551,1774759845139,-1148.47792248,0.000159,2]
[419018552,1774759845150,-151.0,0.000159,2]
[419018553,1774759845161,-151.0,0.000159,2]
[419018554,1774759845171,-151.0,0.000159,2]
[419018555,1774759845182,-255.488011,0.000159,2]
[419018556,1774759845193,-417.16662779,0.000159,2]
[419018557,1774759845203,-151.0,0.000159,2]
[419018558,1774759845215,-151.0,0.000159,2]
[419018559,1774759845226,-151.0,0.000159,2]
[419018560,1774759845236,-151.0,0.000159,2]
[419018561,1774759845247,-151.0,0.000159,2]
[419018562,1774759845257,-151.0,0.000159,2]
[419018563,1774759845267,-151.0,0.000159,2]
[419018564,1774759845278,-2000.0,0.000159,2]
[419018565,1774759845289,-360.025682,0.000159,2]
[419018566,1774759845299,-360.025682,0.000159,2]
[419018567,1774759845308,-360.025682,0.000159,2]
[419018568,1774759845319,-360.025682,0.000159,2]
[419018569,1774759845329,-247.182364,0.000159,2]
[419018570,1774759845339,-247.182364,0.000159,2]
[419018571,1774759845349,-247.182364,0.000159,2]
[419018572,1774759845359,-247.182364,0.000159,2]
[419018573,1774759845369,-151.0,0.000159,2]
[419018574,1774759845379,-181.87716088,0.000159,2]
[419018575,1774759845390,-183.50106686,0.000159,2]
[419018576,1774759845400,-1127.42271707,0.000159,2]
[419018577,1774759845409,-151.0,0.000159,2]
[419018578,1774759845419,-9692.75124446,0.000159,2]
[419018579,1774759845429,-271.79279,0.000159,2]
[419018580,1774759845439,-271.79279,0.000159,2]
[419018581,1774759845450,-271.79279,0.000159,2]
[419018582,1774759845460,-243.59117619,0.00015956,2]
[419018583,1774759845471,-5000.0,0.0001596,2]
[419018584,1774759845480,-350.0,0.00015966,2]
[419018585,1774759845490,-700.0,0.0001597,2]
[419018586,1774759845499,-854.65118905,0.0001597,2]
[419018587,1774759845509,-192.7277889,0.0001599,2]
[419018588,1774759845518,-192.7277889,0.0001599,2]
[419018589,1774759845528,-151.0,0.00015997,2]
[419018590,1774759845538,-666.0,0.00015999,2]
[419018591,1774759845547,-156.494,0.00015999,2]
[419018592,1774759845557,-1608623.80479249,0.00016,2]
[419018593,1774759845733,-271.79279,0.000159,2]
[419018594,1774759845743,-179789.72894749,0.00016,2]
[419018595,1774759845885,-689.72524371,0.00015697,2]
[419018596,1774759845897,-310.27475629,0.00015697,2]
[419018597,1774759845907,-359.60407671,0.00016,2]
[419018598,1774759846025,-513.92439638,0.00016,2]
[419018599,1774759846037,-48096.02872005,0.00016,2]
[419018600,1774759846066,-1000.0,0.00015697,2]
[419018601,1774759846076,-1000.0,0.00015697,2]
[419018602,1774759846099,-1325.53616714,0.00016,2]
[419018603,1774759846117,-929.44880115,0.00016,2]
[419018604,1774759846130,-862.91952571,0.00016,2]
[419018605,1774759846294,-1000.0,0.00015697,2]
[419018606,1774759846304,-1000.0,0.00015697,2]
[419018607,1774759846315,-432.63891681,0.00015697,2]
[419018608,1774759846327,-567.36108319,0.00015697,2]
[419018609,1774759846338,-1000.0,0.00015697,2]
[419018610,1774759846348,-518.29402355,0.00015697,2]
[419018611,1774759846364,-481.70597645,0.00015697,2]
[419018612,1774759846375,-155.85402354,0.00015697,2]
[419018614,1774759846387,-844.14597646,0.00015697,2]
[419018616,1774759846398,-1000.0,0.00015697,2]
[419018617,1774759846408,-161.05402345,0.00015697,2]
[419018619,1774760552815,10151.28,0.00017,60]
[419018621,1774760738907,-1391.21683457,0.00011507,2]
[419018635,1774761031916,-100.33316543,0.00011507,2]
[419018636,1774761031926,-165.09823004,0.00012339,2]
[419018637,1774761031937,-137.29176996,0.00012339,2]
[419018638,1774761031946,-167.87,0.00012456,2]
[419018639,1774761031955,-479.63974808,0.00012467,2]
[419018640,1774761031967,-20.36025192,0.00012467,2]
[419018641,1774761031976,-2433.76,0.00012517,2]
[419018642,1774761031986,-196.33564312,0.00012658,2]
[419018643,1774761031995,-250.0,0.00012658,2]
[419018644,1774761032005,-150.0,0.00012797,2]
[419018645,1774761032014,-327.8108,0.00012842,2]
[419018646,1774761032023,-295.77508463,0.00012842,2]
[419018647,1774761032033,-1200.0,0.00012941,2]
[419018648,1774761032042,-3035.71,0.00012942,2]
[419018649,1774761032051,-1230.76,0.00012953,2]
[419018650,1774761032061,-250.0,0.00013,2]
[419018651,1774761032070,-215.64743884,0.00013081,2]
[419018652,1774761032152,-84.35256116,0.00013081,2]
[419018654,1774761032161,-300.0,0.00013081,2]
[419018656,1774761032170,-150.0,0.00013082,2]
[419018658,1774761032179,-150.0,0.000133,2]
[419018660,1774761032188,-300.0,0.00013347,2]
[419018662,1774761032197,-300.0,0.00013347,2]
[419018663,1774761032206,-630.75066566,0.00013422,2]
[419018665,1774761032215,-630.75066566,0.00013422,2]
[419018667,1774761032224,-181.87716089,0.00013457,2]
[419018669,1774761032233,-183.50106687,0.00013457,2]
[419018671,1774761032243,-1127.42271707,0.00013457,2]
[419018673,1774761032252,-178.93015126,0.00013457,2]
[419018675,1774761032261,-152.51084732,0.000135,2]
[419018677,1774761032270,-192.7277889,0.00013512,2]
[419018679,1774761032279,-192.7277889,0.00013513,2]
[419018681,1774761032288,-150.0,0.00013521,2]
[419018682,1774761032298,-113024.016444,0.00013522,2]
[419018683,1774761032310,-1254.41808677,0.00013522,2]
[419018684,1774761032511,-533.12361376,0.00013425,2]
[419018685,1774761032600,-899.92603032,0.00013425,2]
[419018686,1774761032611,-1514.16905929,0.00013425,2]
[419018687,1774761032623,-292.78129663,0.00013425,2]
[419018688,1774761032632,-582.44010337,0.00013522,2]
[419018689,1774761032651,-816.11829527,0.00013522,2]
[419018692,1774761037988,-410.175902,0.00013521,2]
[419018693,1774761038367,-89.824098,0.00013521,2]
[419018694,1774761038378,-500.0,0.00013521,2]
[419018696,1774761038388,-335.28048563,0.00013521,2]
[419018697,1774761038398,-478.67681789,0.00013521,2]
[419018699,1774761038407,-500.0,0.00013521,2]
[419018701,1774761038417,-500.0,0.00013521,2]
[419018703,1774761038426,-500.0,0.00013521,2]
[419018705,1774761038436,-500.0,0.00013521,2]
[419018707,1774761038445,-604.28298555,0.00013521,2]
[419018708,1774761038455,-500.0,0.00013521,2]
[419018709,1774761038465,-500.0,0.00013521,2]
[419018710,1774761038476,-500.0,0.00013521,2]
[419018711,1774761038487,-2384323.00707059,0.00013522,2]
[419018712,1774761038497,-180.798,0.00013523,2]
[419018714,1774761038507,-2489.651,0.00013523,2]
[419018716,1774761038517,-2500.0,0.00013523,2]
[419018718,1774761038527,-1500000.0,0.00013523,2]
[419018719,1774761038537,-224.28305486,0.00013557,2]
[419018720,1774761038546,-200.0,0.00013565,2]
[419018721,1774761038555,-151.0,0.00013565,2]
[419018722,1774761038564,-151.0,0.00013565,2]
[419018723,1774761038573,-151.0,0.00013565,2]
[419018724,1774761038583,-151.0,0.00013565,2]
[419018725,1774761038593,-151.0,0.00013565,2]
[419018726,1774761038602,-151.0,0.00013565,2]
[419018727,1774761038612,-151.0,0.00013565,2]
[419018728,1774761038622,-151.0,0.00013565,2]
[419018729,1774761038631,-151.0,0.00013565,2]
[419018730,1774761038641,-151.0,0.00013565,2]
[419018731,1774761038651,-151.0,0.00013565,2]
[419018732,1774761038661,-4566.50840311,0.00013572,2]
[419018733,1774761038671,-154.00708367,0.00013573,2]
[419018734,1774761038680,-417.16662784,0.00013573,2]
[419018735,1774761038690,-33382.30864608,0.00013573,2]
[419018736,1774761038700,-9820.89885421,0.00013573,2]
[419018737,1774761038710,-150.0,0.000136,2]
[419018738,1774761038720,-151.0,0.0001362,2]
[419018739,1774761038730,-151.0,0.0001362,2]
[419018740,1774761038745,-500.0,0.00013673,2]
[419018741,1774761038756,-500.0,0.00013673,2]
[419018742,1774761038766,-500.0,0.00013673,2]
[419018743,1774761038777,-500.0,0.00013673,2]
[419018744,1774761038787,-167.52802512,0.00013673,2]
[419018745,1774761038797,-500.0,0.00013673,2]
[419018746,1774761038807,-500.0,0.00013673,2]
[419018747,1774761038817,-500.0,0.00013673,2]
[419018748,1774761038828,-429.85911728,0.00013673,2]
[419018749,1774761038838,-500.0,0.00013673,2]
[419018750,1774761038848,-500.0,0.00013673,2]
[419018751,1774761038858,-500.0,0.00013673,2]
[419018752,1774761038868,-409.82711305,0.00013673,2]
[419018753,1774761038878,-500.0,0.00013673,2]
[419018754,1774761038887,-454.80496102,0.00013673,2]
[419018755,1774761038897,-500.0,0.00013673,2]
[419018756,1774761038907,-587.57676003,0.00013698,2]
[419018757,1774761038917,-500.0,0.00013698,2]
[419018758,1774761038927,-500.0,0.00013698,2]
[419018759,1774761038936,-500.0,0.00013698,2]
[419018760,1774761038946,-500.0,0.00013698,2]
[419018761,1774761038956,-500.0,0.00013698,2]
[419018762,1774761038966,-500.0,0.00013698,2]
[419018763,1774761038976,-500.0,0.00013698,2]
[419018764,1774761038985,-500.0,0.00013698,2]
[419018765,1774761038995,-500.0,0.00013698,2]
[419018766,1774761039004,-500.0,0.00013698,2]
[419018767,1774761039014,-500.0,0.00013698,2]
[419018768,1774761039023,-500.0,0.00013698,2]
[419018769,1774761039032,-635.43,0.00013698,2]
[419018770,1774761039042,-635.43,0.00013698,2]
[419018771,1774761039051,-635.43,0.00013698,2]
[419018772,1774761039060,-635.43,0.00013698,2]
[419018773,1774761039069,-635.43,0.00013698,2]
[419018774,1774761039079,-635.43,0.00013698,2]
[419018775,1774761039088,-500.0,0.00013698,2]
[419018776,1774761039098,-500.0,0.00013698,2]
[419018777,1774761039107,-500.0,0.00013698,2]
[419018778,1774761039118,-500.0,0.00013698,2]
[419018779,1774761039127,-376.64854998,0.00013698,2]
[419018780,1774761039137,-504.79360134,0.00013698,2]
[419018781,1774761039146,-500.0,0.00013698,2]
[419018782,1774761039157,-500.0,0.00013698,2]
[419018783,1774761039167,-500.0,0.00013698,2]
[419018784,1774761039177,-500.0,0.00013698,2]
[419018785,1774761039187,-500.0,0.00013698,2]
[419018786,1774761039196,-217.38717604,0.00013698,2]
[419018787,1774761039206,-500.0,0.00013698,2]
[419018788,1774761039216,-500.0,0.00013698,2]
[419018789,1774761039226,-500.0,0.00013698,2]
[419018790,1774761039235,-500.0,0.00013698,2]
[419018791,1774761039245,-500.0,0.00013698,2]
[419018792,1774761039255,-289.69293567,0.00013698,2]
[419018793,1774761039265,-500.0,0.00013698,2]
[419018794,1774761039274,-500.0,0.00013698,2]
[419018795,1774761039284,-569.13922893,0.00013698,2]
[419018796,1774761039294,-500.0,0.00013698,2]
[419018797,1774761039304,-500.0,0.00013698,2]
[419018798,1774761039313,-500.0,0.00013698,2]
[419018799,1774761039323,-500.0,0.00013698,2]
[419018800,1774761039333,-500.0,0.00013698,2]
[419018801,1774761039342,-500.0,0.00013698,2]
[419018802,1774761039352,-500.0,0.00013698,2]
[419018803,1774761039363,-500.0,0.00013698,2]
[419018804,1774761039372,-179.21652627,0.00013698,2]
[419018805,1774761039382,-500.0,0.00013698,2]
[419018806,1774761039392,-500.0,0.00013698,2]
[419018807,1774761039402,-500.0,0.00013698,2]
[419018808,1774761039412,-500.0,0.00013698,2]
[419018809,1774761039422,-500.0,0.00013698,2]
[419018810,1774761039432,-500.0,0.00013698,2]
[419018811,1774761039441,-500.0,0.00013698,2]
[419018812,1774761039451,-500.0,0.00013698,2]
[419018813,1774761039461,-500.0,0.00013698,2]
[419018814,1774761039471,-500.0,0.00013698,2]
[419018815,1774761039481,-500.0,0.00013698,2]
[419018816,1774761039491,-500.0,0.00013698,2]
[419018817,1774761039500,-500.0,0.00013698,2]
[419018818,1774761039510,-500.0,0.00013698,2]
[419018819,1774761039521,-500.0,0.00013698,2]
[419018820,1774761039530,-500.0,0.00013698,2]
[419018821,1774761039541,-500.0,0.00013698,2]
[419018822,1774761039551,-500.0,0.00013698,2]
[419018823,1774761039561,-500.0,0.00013698,2]
[419018824,1774761039571,-150.0,0.00013699,2]
[419018825,1774761039581,-150.0,0.00013699,2]
[419018826,1774761039591,-150.0,0.00013699,2]
[419018827,1774761039601,-150.0,0.00013699,2]
[419018828,1774761039611,-371.26,0.00013699,2]
[419018829,1774761039621,-200.0,0.00013699,2]
[419018830,1774761039631,-3857.25,0.00013699,2]
[419018831,1774761039640,-999.99,0.00013699,2]
[419018832,1774761039650,-150.99,0.00013699,2]
[419018833,1774761039660,-150.99,0.00013699,2]
[419018834,1774761039670,-9999.99,0.00013699,2]
[419018835,1774761039679,-9590.73,0.00013699,2]
[419018836,1774761039689,-587.5,0.00013699,2]
[419018837,1774761039698,-299.99,0.00013699,2]
[419018838,1774761039708,-321.78262716,0.00013699,2]
[419018839,1774761039718,-162.07,0.000137,2]
[419018840,1774761039728,-215.52,0.000137,2]
[419018841,1774761039737,-1751.82507383,0.0001375,2]
[419018842,1774761039746,-630.75066566,0.00013776,2]
[419018843,1774761039756,-630.75066566,0.00013776,2]
[419018844,1774761039766,-9820.89885415,0.00013831,2]
[419018845,1774761039776,-33382.30864607,0.00013832,2]
[419018846,1774761039786,-500.0,0.00013897,2]
[419018847,1774761039795,-500.0,0.00013897,2]
[419018848,1774761039805,-235.15,0.00013911,2]
[419018849,1774761039814,-417.16662779,0.00013961,2]
[419018850,1774761039824,-217.8882415,0.00013972,2]
[419018851,1774761039839,-150.0,0.00013973,2]
[419018852,1774761039849,-150.0,0.00013973,2]
[419018853,1774761039859,-150.0,0.00013973,2]
[419018854,1774761039868,-563.09074423,0.00013986,2]
[419018855,1774761039878,-505.93653105,0.00013986,2]
[419018856,1774761039888,-511.61768064,0.00013986,2]
[419018857,1774761039897,-500.0,0.00013986,2]
[419018858,1774761039907,-500.0,0.00013986,2]
[419018859,1774761039916,-500.0,0.00013986,2]
[419018860,1774761039926,-500.0,0.00013986,2]
[419018861,1774761039936,-500.0,0.00013986,2]
[419018862,1774761039946,-500.0,0.00013986,2]
[419018863,1774761039955,-500.0,0.00013986,2]
[419018864,1774761039965,-500.0,0.00013986,2]
[419018865,1774761039974,-500.0,0.00013986,2]
[419018866,1774761039984,-247.12633402,0.00013986,2]
[419018867,1774761039994,-500.0,0.00013986,2]
[419018868,1774761040004,-500.0,0.00013986,2]
[419018869,1774761040014,-500.0,0.00013986,2]
[419018870,1774761040024,-500.0,0.00013986,2]
[419018871,1774761040034,-500.0,0.00013986,2]
[419018872,1774761040043,-548.79475367,0.00013986,2]
[419018873,1774761040054,-505.30350392,0.00013986,2]
[419018874,1774761040063,-500.0,0.00013986,2]
[419018875,1774761040073,-500.0,0.00013986,2]
[419018876,1774761040083,-500.0,0.00013986,2]
[419018877,1774761040092,-500.0,0.00013986,2]
[419018878,1774761040101,-500.0,0.00013986,2]
[419018879,1774761040111,-500.0,0.00013986,2]
[419018881,1774761040120,-500.0,0.00013986,2]
[419018882,1774761040129,-361.97778999,0.00013986,2]
[419018883,1774761040139,-513.0,0.00014,2]
[419018884,1774761040148,-11733.4473581,0.00014006,2]
[419018885,1774761040157,-180.933304,0.00014038,2]
[419018886,1774761040167,-500.0,0.00014072,2]
[419018887,1774761040176,-500.0,0.00014072,2]
[419018888,1774761040185,-500.0,0.00014072,2]
[419018889,1774761040194,-500.0,0.00014072,2]
[419018890,1774761040204,-500.0,0.00014072,2]
[419018891,1774761040214,-500.0,0.00014072,2]
[419018892,1774761040223,-500.0,0.00014072,2]
[419018893,1774761040234,-500.0,0.00014072,2]
[419018894,1774761040243,-500.0,0.00014072,2]
[419018895,1774761040266,-500.0,0.00014072,2]
[419018896,1774761040279,-500.0,0.00014072,2]
[419018897,1774761040289,-500.0,0.00014072,2]
[419018898,1774761040300,-500.0,0.00014073,2]
[419018899,1774761040309,-500.0,0.00014073,2]
[419018900,1774761040319,-500.0,0.00014073,2]
[419018901,1774761040329,-164.64289673,0.00014073,2]
[419018902,1774761040340,-500.0,0.00014073,2]
[419018903,1774761040350,-500.0,0.00014073,2]
[419018904,1774761040360,-500.0,0.00014073,2]
[419018905,1774761040369,-166.65702548,0.00014073,2]
[419018906,1774761040378,-629.51176629,0.00014089,2]
[419018907,1774761040388,-500.0,0.00014089,2]
[419018908,1774761040398,-9820.89885415,0.00014089,2]
[419018909,1774761040408,-33382.30864607,0.0001409,2]
[419018910,1774761040417,-200.0,0.00014113,2]
[419018911,1774761040427,-150.0,0.00014121,2]
[419018912,1774761040437,-630.75066566,0.0001413,2]
[419018913,1774761040447,-630.75066566,0.0001413,2]
[419018914,1774761040457,-501.32363081,0.00014221,2]
[419018915,1774761040467,-1000.0,0.00014221,2]
[419018916,1774761040477,-1000.0,0.00014221,2]
[419018917,1774761040487,-1000.0,0.00014221,2]
[419018918,1774761040497,-500.0,0.00014221,2]
[419018919,1774761040507,-1680.0,0.00014235,2]
[419018920,1774761040518,-150.0,0.00014247,2]
[419018921,1774761040528,-150.0,0.00014247,2]
[419018922,1774761040538,-150.0,0.00014247,2]
[419018923,1774761040549,-9820.89885415,0.00014348,2]
[419018924,1774761040558,-417.16662779,0.00014349,2]
[419018925,1774761040569,-33382.30864607,0.00014349,2]
[419018926,1774761040579,-250.0,0.0001435,2]
[419018927,1774761040589,-3578.0,0.00014369,5]
[419018928,1774761040599,-500.0,0.00014425,2]
[419018929,1774761040608,-500.0,0.00014425,2]
[419018930,1774761040619,-630.75066566,0.00014484,2]
[419018931,1774761040629,-154.53434814,0.0001449,2]
[419018932,1774761040639,-1117.0799,0.00014504,2]
[419018933,1774761040649,-167.87,0.00014532,2]
[419018934,1774761040659,-9820.89885415,0.00014606,2]
[419018935,1774761040669,-160.0,0.00014606,2]
[419018936,1774761040679,-959.8630956,0.00014606,2]
[419018937,1774761040689,-33382.30864607,0.00014607,2]
[419018938,1774761040699,-1000.0,0.00014621,2]
[419018939,1774761040708,-502.07720266,0.00014621,2]
[419018940,1774761040718,-1000.0,0.00014621,2]
[419018941,1774761040728,-1001.92036949,0.00014621,2]
[419018942,1774761040738,-1000.0,0.00014621,2]
[419018943,1774761040749,-679.35577738,0.00014621,2]
[419018944,1774761040759,-255.0,0.0001463,2]
[419018945,1774761040769,-200.0,0.00014661,2]
[419018946,1774761040779,-181.87716088,0.00014679,2]
[419018947,1774761040790,-183.50106686,0.00014679,2]
[419018948,1774761040800,-1127.42271707,0.00014679,2]
[419018949,1774761040809,-417.16662779,0.00014737,2]
[419018950,1774761040819,-509.48219482,0.00014768,2]
[419018951,1774761040828,-1500.0,0.00014768,2]
[419018952,1774761040838,-1500.0,0.00014768,2]
[419018953,1774761040848,-192.249846,0.00014822,7]
[419018954,1774761040858,-167.238729,0.00014822,7]
[419018955,1774761040867,-630.75066566,0.00014838,2]
[419018956,1774761040877,-9820.89885415,0.00014864,2]
[419018957,1774761040886,-500.0,0.00014865,2]
[419018958,1774761041053,-33382.30864607,0.00014866,2]